[Event "Titled Tuesday Blitz March 08 Early 2022"]
[White "Alinasab, Mobina"]
[Black "Janturin, Artur"]
[WhiteFideId "12528897"]
[BlackFideId "4130022"]
[WhiteElo "2052"]
[BlackElo "2346"]
[Result "1-0"]
[Round "04"]
[TimeControl "180+1"]
[Date "2022.03.09"]
[WhiteClock "0:01:17"]
[BlackClock "0:00:05"]

1. e4 {[%clk 0:02:56]}  a6 {[%clk 0:02:57]} 2. d4 {[%clk 0:02:54]}  b5 {[%clk 0:02:58]} 3. c3 {[%clk 0:02:54]}  Bb7 {[%clk 0:02:57]} 4. Bd3 {[%clk 0:02:51]}  Nf6 {[%clk 0:02:57]} 5. Qe2 {[%clk 0:02:51]}  e6 {[%clk 0:02:57]} 6. Nf3 {[%clk 0:02:51]}  c5 {[%clk 0:02:57]} 7. e5 {[%clk 0:02:49]}  Nd5 {[%clk 0:02:56]} 8. a3 {[%clk 0:02:49]}  Be7 {[%clk 0:02:51]} 9. dxc5 {[%clk 0:02:48]}  Bxc5 {[%clk 0:02:50]} 10. Bg5 {[%clk 0:02:46]}  Be7 {[%clk 0:02:14]} 11. Bxe7 {[%clk 0:02:44]}  Qxe7 {[%clk 0:02:14]} 12. O-O {[%clk 0:02:37]}  Nf4 {[%clk 0:02:02]} 13. Qe3 {[%clk 0:02:34]}  Nxd3 {[%clk 0:01:50]} 14. Qxd3 {[%clk 0:02:35]}  O-O {[%clk 0:01:37]} 15. Nbd2 {[%clk 0:02:33]}  Bd5 {[%clk 0:01:14]} 16. c4 {[%clk 0:02:20]}  bxc4 {[%clk 0:01:09]} 17. Nxc4 {[%clk 0:02:21]}  Ra7 {[%clk 0:00:42]} 18. b4 {[%clk 0:02:13]}  Nc6 {[%clk 0:00:40]} 19. Rfe1 {[%clk 0:02:11]}  f6 {[%clk 0:00:30]} 20. exf6 {[%clk 0:02:08]}  Qxf6 {[%clk 0:00:31]} 21. Ncd2 {[%clk 0:02:05]}  Raa8 {[%clk 0:00:26]} 22. Rac1 {[%clk 0:02:05]}  Rf7 {[%clk 0:00:20]} 23. Qc3 {[%clk 0:02:04]}  Qg6 {[%clk 0:00:18]} 24. Qc2 {[%clk 0:01:56]}  Qh5 {[%clk 0:00:17]} 25. Qd3 {[%clk 0:01:55]}  Raf8 {[%clk 0:00:16]} 26. Rc3 {[%clk 0:01:47]}  Qg4 {[%clk 0:00:12]} 27. h3 {[%clk 0:01:44]}  Qh5 {[%clk 0:00:12]} 28. Qxa6 {[%clk 0:01:42]}  Bxf3 {[%clk 0:00:11]} 29. Nxf3 {[%clk 0:01:43]}  Rxf3 {[%clk 0:00:11]} 30. Rxf3 {[%clk 0:01:37]}  Rxf3 {[%clk 0:00:11]} 31. gxf3 {[%clk 0:01:38]}  Ne5 {[%clk 0:00:11]} 32. Qc8+ {[%clk 0:01:31]}  Kf7 {[%clk 0:00:11]} 33. Rxe5 {[%clk 0:01:30]}  Qxe5 {[%clk 0:00:12]} 34. Qxd7+ {[%clk 0:01:31]}  Kf6 {[%clk 0:00:11]} 35. Qd8+ {[%clk 0:01:24]}  Kg6 {[%clk 0:00:12]} 36. Qh4 {[%clk 0:01:23]}  Qa1+ {[%clk 0:00:10]} 37. Kg2 {[%clk 0:01:21]}  Qxa3 {[%clk 0:00:11]} 38. Qe4+ {[%clk 0:01:21]}  Kf7 {[%clk 0:00:11]} 39. b5 {[%clk 0:01:22]}  Qb3 {[%clk 0:00:10]} 40. Qb7+ {[%clk 0:01:20]}  Kf6 {[%clk 0:00:07]} 41. b6 {[%clk 0:01:20]}  Qb5 {[%clk 0:00:06]} 42. Qc7 {[%clk 0:01:16]}  Qg5+ {[%clk 0:00:06]} 43. Kh2 {[%clk 0:01:17]}  e5 {[%clk 0:00:05]} 44. Qd8+ {[%clk 0:01:17]} 1-0


[Site "https://www.chess.com"]

[Event "Titled Tuesday Blitz March 08 Early 2022"]
[White "Alonso Rosell, Alvar"]
[Black "Saravana, Krishnan P."]
[WhiteFideId "2270544"]
[BlackFideId "5018382"]
[WhiteElo "2474"]
[BlackElo "2210"]
[Result "1-0"]
[Round "04"]
[TimeControl "180+1"]
[Date "2022.03.09"]
[WhiteClock "0:00:10"]
[BlackClock "0:00:07"]

1. d4 {[%clk 0:01:49]}  Nf6 {[%clk 0:02:58]} 2. c4 {[%clk 0:01:49]}  g6 {[%clk 0:02:57]} 3. Nc3 {[%clk 0:01:49]}  Bg7 {[%clk 0:02:56]} 4. e4 {[%clk 0:01:49]}  d6 {[%clk 0:02:55]} 5. h3 {[%clk 0:01:50]}  O-O {[%clk 0:02:52]} 6. Be3 {[%clk 0:01:50]}  e5 {[%clk 0:02:49]} 7. d5 {[%clk 0:01:50]}  a5 {[%clk 0:02:48]} 8. g4 {[%clk 0:01:47]}  Na6 {[%clk 0:02:48]} 9. Nge2 {[%clk 0:01:47]}  Nd7 {[%clk 0:02:47]} 10. h4 {[%clk 0:01:45]}  Nb6 {[%clk 0:02:46]} 11. Ng3 {[%clk 0:01:44]}  Nc5 {[%clk 0:02:41]} 12. Be2 {[%clk 0:01:36]}  Bd7 {[%clk 0:02:22]} 13. Qd2 {[%clk 0:01:31]}  a4 {[%clk 0:02:10]} 14. h5 {[%clk 0:01:22]}  f6 {[%clk 0:02:04]} 15. hxg6 {[%clk 0:00:48]}  hxg6 {[%clk 0:02:01]} 16. g5 {[%clk 0:00:47]}  f5 {[%clk 0:00:48]} 17. exf5 {[%clk 0:00:48]}  Rxf5 {[%clk 0:00:46]} 18. Nxf5 {[%clk 0:00:42]}  Bxf5 {[%clk 0:00:45]} 19. Bxc5 {[%clk 0:00:39]}  dxc5 {[%clk 0:00:44]} 20. a3 {[%clk 0:00:38]}  Qe7 {[%clk 0:00:38]} 21. O-O-O {[%clk 0:00:36]}  e4 {[%clk 0:00:37]} 22. Qe3 {[%clk 0:00:22]}  Rf8 {[%clk 0:00:35]} 23. Qg3 {[%clk 0:00:17]}  Be5 {[%clk 0:00:34]} 24. Qh4 {[%clk 0:00:17]}  Qg7 {[%clk 0:00:34]} 25. Kd2 {[%clk 0:00:13]}  e3+ {[%clk 0:00:34]} 26. fxe3 {[%clk 0:00:13]}  Re8 {[%clk 0:00:30]} 27. Bd3 {[%clk 0:00:12]}  Bxd3 {[%clk 0:00:28]} 28. Kxd3 {[%clk 0:00:13]}  Nd7 {[%clk 0:00:19]} 29. Ne4 {[%clk 0:00:13]}  Bxb2 {[%clk 0:00:18]} 30. Rdf1 {[%clk 0:00:13]}  Ne5+ {[%clk 0:00:17]} 31. Kc2 {[%clk 0:00:14]}  Nxc4 {[%clk 0:00:17]} 32. Nf6+ {[%clk 0:00:13]}  Bxf6 {[%clk 0:00:17]} 33. gxf6 {[%clk 0:00:14]}  Nxe3+ {[%clk 0:00:17]} 34. Kc1 {[%clk 0:00:13]}  g5 {[%clk 0:00:15]} 35. Qh5 {[%clk 0:00:11]}  Nxf1 {[%clk 0:00:07]} 36. Qxe8+ {[%clk 0:00:10]} 1-0


[Site "https://www.chess.com"]

[Event "Titled Tuesday Blitz March 08 Early 2022"]
[White "Alves Campelo, Danilo Cesar De L"]
[Black "Chernov, Alexander A."]
[WhiteFideId "2123657"]
[BlackFideId "4152492"]
[WhiteElo "1994"]
[BlackElo "1956"]
[Result "0-1"]
[Round "04"]
[TimeControl "180+1"]
[Date "2022.03.09"]
[WhiteClock "0:00:19"]
[BlackClock "0:00:39"]

1. e4 {[%clk 0:03:00]}  e5 {[%clk 0:02:59]} 2. Nf3 {[%clk 0:03:00]}  Nc6 {[%clk 0:02:59]} 3. Bb5 {[%clk 0:03:01]}  Bc5 {[%clk 0:02:57]} 4. O-O {[%clk 0:03:00]}  Nd4 {[%clk 0:02:56]} 5. Nxd4 {[%clk 0:02:58]}  Bxd4 {[%clk 0:02:57]} 6. c3 {[%clk 0:02:57]}  Bb6 {[%clk 0:02:57]} 7. d4 {[%clk 0:02:57]}  c6 {[%clk 0:02:57]} 8. Ba4 {[%clk 0:02:55]}  d6 {[%clk 0:02:56]} 9. dxe5 {[%clk 0:02:53]}  dxe5 {[%clk 0:02:56]} 10. Qxd8+ {[%clk 0:02:54]}  Bxd8 {[%clk 0:02:55]} 11. f4 {[%clk 0:02:43]}  Bb6+ {[%clk 0:02:53]} 12. Kh1 {[%clk 0:02:43]}  Nf6 {[%clk 0:02:54]} 13. Bc2 {[%clk 0:01:51]}  O-O {[%clk 0:02:26]} 14. fxe5 {[%clk 0:01:41]}  Ng4 {[%clk 0:02:26]} 15. h3 {[%clk 0:01:42]}  Nxe5 {[%clk 0:02:23]} 16. Bf4 {[%clk 0:01:42]}  Ng6 {[%clk 0:02:10]} 17. Bg3 {[%clk 0:01:39]}  Be6 {[%clk 0:02:07]} 18. Nd2 {[%clk 0:01:39]}  Rad8 {[%clk 0:02:02]} 19. Nf3 {[%clk 0:01:26]}  h6 {[%clk 0:01:45]} 20. a4 {[%clk 0:01:27]}  a5 {[%clk 0:01:44]} 21. Rad1 {[%clk 0:01:28]}  Bc4 {[%clk 0:01:32]} 22. Rxd8 {[%clk 0:01:06]}  Rxd8 {[%clk 0:01:31]} 23. Rd1 {[%clk 0:01:07]}  Rxd1+ {[%clk 0:01:31]} 24. Bxd1 {[%clk 0:01:08]}  Bd3 {[%clk 0:01:27]} 25. e5 {[%clk 0:01:08]}  Kf8 {[%clk 0:01:23]} 26. Nd4 {[%clk 0:01:06]}  Ke7 {[%clk 0:01:19]} 27. Bb3 {[%clk 0:01:00]}  Bc7 {[%clk 0:01:17]} 28. Nf3 {[%clk 0:00:38]}  Be2 {[%clk 0:01:02]} 29. Kg1 {[%clk 0:00:39]}  Bxf3 {[%clk 0:01:01]} 30. gxf3 {[%clk 0:00:38]}  Bxe5 {[%clk 0:01:01]} 31. Bf2 {[%clk 0:00:36]}  Bc7 {[%clk 0:00:54]} 32. Bc5+ {[%clk 0:00:36]}  Ke8 {[%clk 0:00:54]} 33. Kf2 {[%clk 0:00:35]}  Ne5 {[%clk 0:00:53]} 34. Ke3 {[%clk 0:00:29]}  Nd7 {[%clk 0:00:52]} 35. Bd4 {[%clk 0:00:29]}  f6 {[%clk 0:00:51]} 36. f4 {[%clk 0:00:28]}  Bd6 {[%clk 0:00:46]} 37. c4 {[%clk 0:00:28]}  Ke7 {[%clk 0:00:46]} 38. Bc2 {[%clk 0:00:27]}  g5 {[%clk 0:00:45]} 39. fxg5 {[%clk 0:00:26]}  hxg5 {[%clk 0:00:45]} 40. b3 {[%clk 0:00:26]}  Bc5 {[%clk 0:00:43]} 41. Bxc5+ {[%clk 0:00:23]}  Nxc5 {[%clk 0:00:42]} 42. Kd4 {[%clk 0:00:24]}  Ne6+ {[%clk 0:00:42]} 43. Ke4 {[%clk 0:00:24]}  Ng7 {[%clk 0:00:41]} 44. c5 {[%clk 0:00:22]}  Ne6 {[%clk 0:00:40]} 45. Kf5 {[%clk 0:00:20]}  Nd4+ {[%clk 0:00:38]} 46. Kg6 {[%clk 0:00:19]}  Nxc2 {[%clk 0:00:39]} 0-1


[Site "https://www.chess.com"]

[Event "Titled Tuesday Blitz March 08 Early 2022"]
[White "Ambartsumova, Karina"]
[Black "Lima, Kleyton Alcantara"]
[WhiteFideId "4166299"]
[BlackFideId "22718397"]
[WhiteElo "2262"]
[BlackElo "1951"]
[Result "0-1"]
[Round "04"]
[TimeControl "180+1"]
[Date "2022.03.09"]
[WhiteClock "0:00:04"]
[BlackClock "0:00:09"]

1. e4 {[%clk 0:03:00]}  c5 {[%clk 0:02:59]} 2. Nf3 {[%clk 0:03:00]}  d6 {[%clk 0:02:59]} 3. Bb5+ {[%clk 0:03:00]}  Bd7 {[%clk 0:02:59]} 4. Bxd7+ {[%clk 0:02:59]}  Nxd7 {[%clk 0:03:00]} 5. O-O {[%clk 0:02:58]}  Ngf6 {[%clk 0:03:00]} 6. Qe2 {[%clk 0:02:58]}  Rc8 {[%clk 0:03:00]} 7. c3 {[%clk 0:02:58]}  e6 {[%clk 0:03:00]} 8. d4 {[%clk 0:02:58]}  cxd4 {[%clk 0:03:01]} 9. cxd4 {[%clk 0:02:56]}  Be7 {[%clk 0:03:01]} 10. Nc3 {[%clk 0:02:55]}  Nb6 {[%clk 0:03:01]} 11. a3 {[%clk 0:02:33]}  O-O {[%clk 0:03:00]} 12. Bf4 {[%clk 0:02:14]}  h6 {[%clk 0:02:59]} 13. Rac1 {[%clk 0:02:10]}  Qd7 {[%clk 0:02:58]} 14. Rfd1 {[%clk 0:01:57]}  Na4 {[%clk 0:02:52]} 15. e5 {[%clk 0:01:40]}  Nxc3 {[%clk 0:02:49]} 16. bxc3 {[%clk 0:01:41]}  Nd5 {[%clk 0:02:46]} 17. Bd2 {[%clk 0:01:42]}  dxe5 {[%clk 0:02:43]} 18. Nxe5 {[%clk 0:01:42]}  Qa4 {[%clk 0:02:39]} 19. c4 {[%clk 0:01:41]}  Nf6 {[%clk 0:02:35]} 20. Rc3 {[%clk 0:01:25]}  Rfd8 {[%clk 0:02:31]} 21. Bxh6 {[%clk 0:01:14]}  gxh6 {[%clk 0:02:25]} 22. Rg3+ {[%clk 0:01:14]}  Kf8 {[%clk 0:02:12]} 23. Rdd3 {[%clk 0:01:02]}  Bd6 {[%clk 0:01:56]} 24. Rgf3 {[%clk 0:00:34]}  Bxe5 {[%clk 0:01:47]} 25. Qxe5 {[%clk 0:00:34]}  Qxc4 {[%clk 0:01:15]} 26. g3 {[%clk 0:00:29]}  Ng8 {[%clk 0:01:03]} 27. Qh5 {[%clk 0:00:06]}  Rc7 {[%clk 0:00:57]} 28. Rc3 {[%clk 0:00:04]}  Qxc3 {[%clk 0:00:47]} 29. Rxc3 {[%clk 0:00:05]}  Rxc3 {[%clk 0:00:48]} 30. Qa5 {[%clk 0:00:06]}  Rdc8 {[%clk 0:00:39]} 31. Qxa7 {[%clk 0:00:06]}  R3c7 {[%clk 0:00:36]} 32. Qb6 {[%clk 0:00:05]}  Ne7 {[%clk 0:00:35]} 33. Qd6 {[%clk 0:00:04]}  Ke8 {[%clk 0:00:35]} 34. Qf4 {[%clk 0:00:04]}  h5 {[%clk 0:00:29]} 35. h4 {[%clk 0:00:04]}  Rc2 {[%clk 0:00:28]} 36. Qh6 {[%clk 0:00:03]}  Re2 {[%clk 0:00:18]} 37. Qxh5 {[%clk 0:00:03]}  Rcc2 {[%clk 0:00:16]} 38. Qb5+ {[%clk 0:00:03]}  Kf8 {[%clk 0:00:10]} 39. Qxb7 {[%clk 0:00:04]}  Rxf2 {[%clk 0:00:10]} 40. a4 {[%clk 0:00:04]}  Rfd2 {[%clk 0:00:09]} 41. a5 {[%clk 0:00:04]}  Rc1# {[%clk 0:00:09]} 0-1


[Site "https://www.chess.com"]

[Event "Titled Tuesday Blitz March 08 Early 2022"]
[White "Ardila, Oscar Humberto"]
[Black "Obad, Andrija"]
[WhiteFideId "4404742"]
[BlackFideId "14412276"]
[WhiteElo "1966"]
[BlackElo "2270"]
[Result "1-0"]
[Round "04"]
[TimeControl "180+1"]
[Date "2022.03.09"]
[WhiteClock "0:01:07"]
[BlackClock "0:00:51"]

1. d4 {[%clk 0:02:59]}  Nf6 {[%clk 0:02:58]} 2. c4 {[%clk 0:02:59]}  c5 {[%clk 0:02:57]} 3. d5 {[%clk 0:02:59]}  b5 {[%clk 0:02:55]} 4. Qc2 {[%clk 0:02:58]}  g6 {[%clk 0:02:52]} 5. e4 {[%clk 0:02:58]}  d6 {[%clk 0:02:51]} 6. cxb5 {[%clk 0:02:56]}  a6 {[%clk 0:02:51]} 7. Nc3 {[%clk 0:02:55]}  Bg7 {[%clk 0:02:51]} 8. h3 {[%clk 0:02:52]}  O-O {[%clk 0:02:50]} 9. Nf3 {[%clk 0:02:52]}  Nbd7 {[%clk 0:02:50]} 10. a4 {[%clk 0:02:52]}  Qa5 {[%clk 0:02:50]} 11. Bd2 {[%clk 0:02:44]}  Re8 {[%clk 0:02:38]} 12. Be2 {[%clk 0:02:37]}  axb5 {[%clk 0:02:37]} 13. Bxb5 {[%clk 0:02:37]}  Ba6 {[%clk 0:02:35]} 14. O-O {[%clk 0:02:32]}  Qb6 {[%clk 0:02:34]} 15. Rfe1 {[%clk 0:02:24]}  Bxb5 {[%clk 0:02:26]} 16. Nxb5 {[%clk 0:02:24]}  Reb8 {[%clk 0:02:19]} 17. Bc3 {[%clk 0:02:16]}  Ra6 {[%clk 0:02:09]} 18. b3 {[%clk 0:02:13]}  Rc8 {[%clk 0:02:02]} 19. Nd2 {[%clk 0:02:04]}  Qb8 {[%clk 0:01:54]} 20. Nc4 {[%clk 0:02:03]}  Nb6 {[%clk 0:01:55]} 21. Rad1 {[%clk 0:01:51]}  Nxc4 {[%clk 0:01:52]} 22. bxc4 {[%clk 0:01:51]}  Qa8 {[%clk 0:01:51]} 23. a5 {[%clk 0:01:51]}  Nd7 {[%clk 0:01:49]} 24. Bxg7 {[%clk 0:01:49]}  Kxg7 {[%clk 0:01:48]} 25. Ra1 {[%clk 0:01:48]}  Kg8 {[%clk 0:01:44]} 26. Qd2 {[%clk 0:01:43]}  Ne5 {[%clk 0:01:42]} 27. Qc3 {[%clk 0:01:43]}  Qb7 {[%clk 0:01:36]} 28. f4 {[%clk 0:01:42]}  Nd7 {[%clk 0:01:35]} 29. e5 {[%clk 0:01:40]}  Rca8 {[%clk 0:01:28]} 30. e6 {[%clk 0:01:35]}  Nf6 {[%clk 0:01:19]} 31. exf7+ {[%clk 0:01:35]}  Kxf7 {[%clk 0:01:20]} 32. Re3 {[%clk 0:01:23]}  Nxd5 {[%clk 0:01:14]} 33. Nxd6+ {[%clk 0:01:11]}  Rxd6 {[%clk 0:01:10]} 34. cxd5 {[%clk 0:01:11]}  Qxd5 {[%clk 0:01:10]} 35. Rae1 {[%clk 0:01:10]}  Ra7 {[%clk 0:01:11]} 36. Qh8 {[%clk 0:01:09]}  h5 {[%clk 0:00:52]} 37. Qh7+ {[%clk 0:01:07]}  Ke8 {[%clk 0:00:51]} 38. Rxe7+ {[%clk 0:01:07]} 1-0


[Site "https://www.chess.com"]

[Event "Titled Tuesday Blitz March 08 Early 2022"]
[White "Atzl, Florian"]
[Black "P., Komal Kishore"]
[WhiteFideId "1635891"]
[BlackFideId "5016703"]
[WhiteElo "2085"]
[BlackElo "2146"]
[Result "1-0"]
[Round "04"]
[TimeControl "180+1"]
[Date "2022.03.09"]
[WhiteClock "0:01:34"]
[BlackClock "0:01:57"]

1. e4 {[%clk 0:03:00]}  c6 {[%clk 0:03:00]} 2. d4 {[%clk 0:02:58]}  d5 {[%clk 0:03:01]} 3. Nd2 {[%clk 0:02:58]}  dxe4 {[%clk 0:03:01]} 4. Nxe4 {[%clk 0:02:59]}  Bf5 {[%clk 0:03:01]} 5. Ng3 {[%clk 0:02:57]}  Bg6 {[%clk 0:03:01]} 6. h4 {[%clk 0:02:58]}  h6 {[%clk 0:03:01]} 7. Nf3 {[%clk 0:02:59]}  Nd7 {[%clk 0:03:01]} 8. h5 {[%clk 0:02:59]}  Bh7 {[%clk 0:03:00]} 9. Bd3 {[%clk 0:02:59]}  Bxd3 {[%clk 0:02:59]} 10. Qxd3 {[%clk 0:03:00]}  e6 {[%clk 0:03:00]} 11. Bd2 {[%clk 0:03:00]}  Ngf6 {[%clk 0:02:58]} 12. O-O-O {[%clk 0:02:59]}  Qc7 {[%clk 0:02:57]} 13. Ne4 {[%clk 0:02:59]}  Nxe4 {[%clk 0:02:55]} 14. Qxe4 {[%clk 0:03:00]}  Nf6 {[%clk 0:02:55]} 15. Qe2 {[%clk 0:02:59]}  O-O-O {[%clk 0:02:53]} 16. c4 {[%clk 0:02:58]}  c5 {[%clk 0:02:51]} 17. Bc3 {[%clk 0:02:47]}  a6 {[%clk 0:02:49]} 18. Kb1 {[%clk 0:02:46]}  cxd4 {[%clk 0:02:43]} 19. Bxd4 {[%clk 0:02:30]}  Be7 {[%clk 0:02:32]} 20. Ne5 {[%clk 0:02:20]}  Rhf8 {[%clk 0:02:28]} 21. g4 {[%clk 0:02:08]}  Bd6 {[%clk 0:02:25]} 22. f4 {[%clk 0:02:04]}  Kb8 {[%clk 0:02:11]} 23. g5 {[%clk 0:02:01]}  Nd7 {[%clk 0:02:06]} 24. Nxd7+ {[%clk 0:01:54]}  Rxd7 {[%clk 0:02:01]} 25. Bxg7 {[%clk 0:01:52]}  Rg8 {[%clk 0:01:59]} 26. gxh6 {[%clk 0:01:47]}  Bxf4 {[%clk 0:01:57]} 27. h7 {[%clk 0:01:34]} 1-0


[Site "https://www.chess.com"]

[Event "Titled Tuesday Blitz March 08 Early 2022"]
[White "Babazada, Khazar"]
[Black "Goltseva, Ekaterina"]
[WhiteFideId "13413554"]
[BlackFideId "24173770"]
[WhiteElo "2418"]
[BlackElo "2140"]
[Result "1-0"]
[Round "04"]
[TimeControl "180+1"]
[Date "2022.03.08"]
[WhiteClock "0:00:54"]
[BlackClock "0:00:05"]

1. Nf3 {[%clk 0:03:00]}  Nf6 {[%clk 0:02:59]} 2. c4 {[%clk 0:03:00]}  e6 {[%clk 0:02:59]} 3. Nc3 {[%clk 0:03:00]}  d5 {[%clk 0:02:59]} 4. cxd5 {[%clk 0:02:58]}  Nxd5 {[%clk 0:02:58]} 5. d4 {[%clk 0:02:59]}  Be7 {[%clk 0:02:52]} 6. e4 {[%clk 0:02:59]}  Nxc3 {[%clk 0:02:53]} 7. bxc3 {[%clk 0:03:00]}  c5 {[%clk 0:02:54]} 8. Bd3 {[%clk 0:02:54]}  O-O {[%clk 0:02:51]} 9. O-O {[%clk 0:02:54]}  cxd4 {[%clk 0:02:50]} 10. cxd4 {[%clk 0:02:53]}  Nc6 {[%clk 0:02:51]} 11. e5 {[%clk 0:02:53]}  f5 {[%clk 0:02:38]} 12. exf6 {[%clk 0:02:47]}  Bxf6 {[%clk 0:02:38]} 13. Be3 {[%clk 0:02:47]}  Kh8 {[%clk 0:02:27]} 14. Be4 {[%clk 0:02:44]}  Nb4 {[%clk 0:02:19]} 15. Ne5 {[%clk 0:02:37]}  Qe8 {[%clk 0:01:27]} 16. Qg4 {[%clk 0:02:24]}  Bxe5 {[%clk 0:00:57]} 17. dxe5 {[%clk 0:02:23]}  Nd5 {[%clk 0:00:58]} 18. Qh4 {[%clk 0:02:18]}  g6 {[%clk 0:00:56]} 19. Bh6 {[%clk 0:02:16]}  Bd7 {[%clk 0:00:44]} 20. Bxd5 {[%clk 0:02:09]}  exd5 {[%clk 0:00:43]} 21. e6 {[%clk 0:02:10]}  Qxe6 {[%clk 0:00:35]} 22. Bxf8 {[%clk 0:02:06]}  Rxf8 {[%clk 0:00:36]} 23. Rfe1 {[%clk 0:02:03]}  Qf6 {[%clk 0:00:27]} 24. Qxf6+ {[%clk 0:01:58]}  Rxf6 {[%clk 0:00:28]} 25. Re7 {[%clk 0:01:56]}  Bc6 {[%clk 0:00:28]} 26. Rd1 {[%clk 0:01:50]}  Rd6 {[%clk 0:00:26]} 27. Rd4 {[%clk 0:01:49]}  Kg8 {[%clk 0:00:22]} 28. f3 {[%clk 0:01:49]}  h5 {[%clk 0:00:19]} 29. Kf2 {[%clk 0:01:49]}  Kf8 {[%clk 0:00:19]} 30. Re5 {[%clk 0:01:47]}  Kf7 {[%clk 0:00:19]} 31. Rf4+ {[%clk 0:01:45]}  Rf6 {[%clk 0:00:15]} 32. Rxf6+ {[%clk 0:01:40]}  Kxf6 {[%clk 0:00:16]} 33. f4 {[%clk 0:01:41]}  d4 {[%clk 0:00:13]} 34. g3 {[%clk 0:01:41]}  a6 {[%clk 0:00:09]} 35. h4 {[%clk 0:01:40]}  d3 {[%clk 0:00:09]} 36. Ke3 {[%clk 0:01:40]}  Bb5 {[%clk 0:00:09]} 37. Rc5 {[%clk 0:01:36]}  Ke6 {[%clk 0:00:08]} 38. Rc7 {[%clk 0:01:35]}  Kf5 {[%clk 0:00:06]} 39. Rc5+ {[%clk 0:01:34]}  Kf6 {[%clk 0:00:05]} 40. Re5 {[%clk 0:01:16]}  Kf7 {[%clk 0:00:04]} 41. Rd5 {[%clk 0:01:11]}  Kf6 {[%clk 0:00:05]} 42. Rc5 {[%clk 0:01:12]}  Ke6 {[%clk 0:00:04]} 43. a3 {[%clk 0:01:04]}  Kf6 {[%clk 0:00:04]} 44. Rc7 {[%clk 0:00:53]}  Kf5 {[%clk 0:00:04]} 45. Rxb7 {[%clk 0:00:54]}  Kg4 {[%clk 0:00:04]} 46. Rb6 {[%clk 0:00:54]}  Kxg3 {[%clk 0:00:02]} 47. Rxg6+ {[%clk 0:00:54]}  Kxh4 {[%clk 0:00:02]} 48. f5 {[%clk 0:00:55]}  Bc4 {[%clk 0:00:01]} 49. f6 {[%clk 0:00:54]}  Kh3 {[%clk 0:00:01]} 50. Rg7 {[%clk 0:00:54]}  h4 {[%clk 0:00:02]} 51. f7 {[%clk 0:00:54]}  Bxf7 {[%clk 0:00:02]} 52. Rxf7 {[%clk 0:00:55]}  Kh2 {[%clk 0:00:03]} 53. Kxd3 {[%clk 0:00:53]}  h3 {[%clk 0:00:03]} 54. Rf6 {[%clk 0:00:52]}  Kh1 {[%clk 0:00:04]} 55. Rxa6 {[%clk 0:00:53]}  h2 {[%clk 0:00:05]} 56. Rh6 {[%clk 0:00:52]}  Kg1 {[%clk 0:00:05]} 57. Rxh2 {[%clk 0:00:53]}  Kxh2 {[%clk 0:00:05]} 58. a4 {[%clk 0:00:54]} 1-0


[Site "https://www.chess.com"]

[Event "Titled Tuesday Blitz March 08 Early 2022"]
[White "Barrientos, Sergio E"]
[Black "Yang, Kaiqi"]
[WhiteFideId "4401824"]
[BlackFideId "8604398"]
[WhiteElo "2397"]
[BlackElo "2373"]
[Result "1-0"]
[Round "04"]
[TimeControl "180+1"]
[Date "2022.03.09"]
[WhiteClock "0:01:08"]
[BlackClock "0:00:02"]

1. d4 {[%clk 0:02:55]}  d5 {[%clk 0:02:59]} 2. c4 {[%clk 0:02:55]}  e6 {[%clk 0:02:59]} 3. Nc3 {[%clk 0:02:54]}  a6 {[%clk 0:03:00]} 4. cxd5 {[%clk 0:02:51]}  exd5 {[%clk 0:03:00]} 5. Qb3 {[%clk 0:02:50]}  c5 {[%clk 0:02:58]} 6. Nxd5 {[%clk 0:02:36]}  Be6 {[%clk 0:02:39]} 7. e4 {[%clk 0:02:35]}  Nc6 {[%clk 0:02:23]} 8. Qxb7 {[%clk 0:02:25]}  Bxd5 {[%clk 0:02:16]} 9. exd5 {[%clk 0:02:19]}  Nb4 {[%clk 0:01:54]} 10. Bg5 {[%clk 0:01:53]}  Rb8 {[%clk 0:01:18]} 11. Qa7 {[%clk 0:01:42]}  f6 {[%clk 0:00:50]} 12. Bf4 {[%clk 0:01:37]}  Nc2+ {[%clk 0:00:19]} 13. Kd1 {[%clk 0:01:35]}  Rxb2 {[%clk 0:00:17]} 14. Bc1 {[%clk 0:01:13]}  Qe7 {[%clk 0:00:04]} 15. Qxe7+ {[%clk 0:01:07]}  Nxe7 {[%clk 0:00:03]} 16. Bxb2 {[%clk 0:01:07]}  Nxa1 {[%clk 0:00:04]} 17. Bxa1 {[%clk 0:01:08]}  Nxd5 {[%clk 0:00:04]} 18. Nf3 {[%clk 0:01:08]}  cxd4 {[%clk 0:00:03]} 19. Bc4 {[%clk 0:01:08]}  Nb6 {[%clk 0:00:01]} 20. Bxa6 {[%clk 0:01:08]}  Bc5 {[%clk 0:00:01]} 21. Bxd4 {[%clk 0:01:08]}  Kf7 {[%clk 0:00:02]} 22. Bxc5 {[%clk 0:01:08]} 1-0


[Site "https://www.chess.com"]